Cogmind - Beta 9.2 @@@ ROGUE MODE // 2019.11.29 @ 23:43:28 Player: Cassie Rose Result: Destroyed by B-75 Beast with Heavy Machine Gun Performance ------------- Evolutions (2) 1000 Regions Visited (5) 1000 Robots Destroyed (43) 215 Value Destroyed (1931) 1931 Prototype IDs (6) 120 Alien Tech Used (0) 0 Bonus (1229) 1229 TOTAL SCORE: 5495 Bonus ------- High Alert Combat Kills 259 Follower Combat Kills 301 Entered Garrisons 200 Used RIF Installer 500 Friendly Fire -31 Cogmind --------- Core Integrity 0/550 Matter 231/300 Energy 92/100 System Corruption 0% Temperature Cool (36) Movement Walking (150) Ox1 Location -8/Garrison Parts ------- > --- POWER (1) -------- (None) > --- PROPULSION (3) --- Improved Carbon-fiber Leg > --- UTILITY (5) ------ Large Storage Unit Relay Coupler [Brawler] (21) > --- WEAPON (2) ------- Magnetic Acceleration Cannon Magnetic Acceleration Cannon > --- INVENTORY (10) --- Relay Coupler [NC] (28) Relay Coupler [ARC] (11) Relay Coupler [Swarmer] (37) Relay Coupler [Swarmer] (33) Relay Coupler [Sentry] (17) Relay Coupler [Sentry] (18) Relay Coupler [Behemoth] (12) Beam Rifle Advanced Beam Cannon Gauss Rifle Peak State ------------ > --- POWER ------------ Improved Ion Engine > --- PROPULSION ------- Improved Carbon-fiber Leg Improved Carbon-fiber Leg Improved Carbon-fiber Leg > --- UTILITY ---------- Improved Cooling System Large Storage Unit Improved Terrain Scanner Improved Targeting Computer Improved ECM Suite > --- WEAPON ----------- Gauss Rifle Gauss Rifle > --- INVENTORY -------- Relay Coupler [NC] Relay Coupler [ARC] Relay Coupler [Swarmer] Relay Coupler [Swarmer] Relay Coupler [Brawler] Relay Coupler [Sentry] Relay Coupler [Sentry] Relay Coupler [Behemoth] Beam Rifle Advanced Beam Cannon [Rating: 37] Favorites ----------- Power Improved Ion Engine Engine Improved Ion Engine Propulsion Flight Unit Treads Light Treads Leg Improved Carbon-fiber Leg Wheel Compact Wheel Flight Unit Flight Unit Utility Large Storage Unit Device Improved Terrain Scanner Storage Large Storage Unit Processor Improved Targeting Computer Hackware Relay Coupler [Brawler] Protection Light Armor Plating Weapon Gauss Rifle Energy Gun Small Laser Energy Cannon Advanced Beam Cannon Ballistic Gun Gauss Rifle Ballistic Cannon Improved Light Cannon Build | -11 -10 -10 -9 -8 -8 ------- Run | Scr Mat Min Mat Mat Gar Slots Evolved 4 | . . . 2 2 . Power . | . . . . . . Propulsion 1 | . . . 1 . . Utility 3 | . . . 1 2 . Weapon . | . . . . . . Parts Attached 53 | 6 1 6 11 9 20 Power 5 | 1 . 1 2 . 1 Engine 5 | 1 . 1 2 . 1 Core . | . . . . . . Reactor . | . . . . . . Propulsion 17 | 2 . 2 3 3 7 Treads 1 | . . . . 1 . Leg 6 | . . . . . 6 Wheel 4 | 2 . . 2 . . Hover . | . . . . . . Flight 6 | . . 2 1 2 1 Utility 14 | 1 1 1 3 3 5 Device 8 | 1 . 1 1 2 3 Storage 1 | . 1 . . . . Processor 1 | . . . . . 1 Hackware 1 | . . . . . 1 Protection 3 | . . . 2 1 . Artifact . | . . . . . . Weapon 17 | 2 . 2 3 3 7 Energy Gun 3 | 1 . 1 1 . . Energy Cannon 1 | . . . 1 . . Ballistic Gun 10 | 1 . 1 . 3 5 Ballistic Cannon 3 | . . . 1 . 2 Launcher . | . . . . . . Special Weapon . | . . . . . . Impact Weapon . | . . . . . . Slashing Weapon . | . . . . . . Piercing Weapon . | . . . . . . Special Melee Weapon . | . . . . . . Unidentified Prototypes 3 | . . . 3 . . Parts Lost 25 | . . 4 1 6 14 Power 1 | . . . . . 1 Propulsion 10 | . . 2 1 2 5 Utility 9 | . . 1 . 2 6 Weapon 5 | . . 1 . 2 2 Highest Loss Streak 7 | . . 3 1 5 7 Average Slot Usage (%) 95 | . 87 91 91 89 98 Engine 9 | . 14 14 11 9 8 Treads 3 | . . . . 4 4 Leg 4 | . . . . . 7 Wheel 3 | . 28 10 14 3 . Flight 13 | . . 10 14 15 14 Device 26 | . 14 13 11 27 31 Storage 9 | . 2 14 11 9 9 Processor 2 | . . . . . 3 Protection 1 | . . . 8 6 . Energy Gun 2 | . 14 13 8 . . Ballistic Gun 15 | . 14 14 11 11 17 Naked Turns . | . . . . . . Heaviest Build 40 | 9 25 25 38 40 38 Greatest Support 54 | 26 26 26 32 20 54 Greatest Overweight (x) 11 | 2 . 7 3 3 11 Average Overweight (x) . | . . 1 . 1 . Largest Inventory Capacity 10 | 4 10 10 10 10 10 Average Capacity 9 | 4 5 10 10 10 10 Most Carried 10 | 2 1 2 10 9 10 Average Carried 6 | . . . 4 6 8 Final Capacity 10 | 4 10 10 10 10 10 Final Carried 10 | . . . 10 5 10 Class Distribution -------------------- 55% | Scavenger-Mutant 44% | Mutant Dominant Class ---------------- Mutant | -10/Materials Mutant | -10/Mines Scavenger-Mutant | -9/Materials Mutant | -8/Materials Scavenger-Mutant | -8/Garrison Resources | -11 -10 -10 -9 -8 -8 ----------- Run | Scr Mat Min Mat Mat Gar Matter Collected 1477 | 273 . 84 174 338 608 Remotely . | . . . . . . Salvage Created 1711 | 121 . 185 299 318 788 Parts 91 | 6 . 17 10 18 40 Haulers Intercepted 3 | . . . 2 1 . Recyclers Shooed 2 | 1 . . 1 . . Parts Field Recycled . | . . . . . . Retrieved Matter . | . . . . . . Parts Self-Destructed . | . . . . . . Prevented . | . . . . . . Kills | -11 -10 -10 -9 -8 -8 ------- Run | Scr Mat Min Mat Mat Gar Combat Hostiles Destroyed 33 | . . 6 . 9 18 Guns 29 | . . 6 . 6 17 Cannons 4 | . . . . 3 1 Classes Destroyed 12 | 3 . 2 2 2 3 Worker 1 | 1 . . . . . Tunneler 2 | 2 . . . . . Hauler 3 | . . . 2 1 . Recycler 3 | 1 . . 2 . . Watcher 1 | . . . 1 . . Swarmer 8 | . . 3 . 2 3 Grunt 18 | . . 3 . 5 10 Brawler 1 | . . . . 1 . Sentry 3 | . . . . 1 2 Specialist 1 | . . . . . 1 Hunter 1 | . . . . . 1 Behemoth 1 | . . . . . 1 Best Kill Streak 5 | 2 . 3 2 3 5 Combat Bots Only 5 | . . 3 . 3 5 Max Kills in Single Turn 2 | 1 . 1 1 1 2 Gunslinging 1 | . . . . . 1 Exploded . | . . . . . . Melee . | . . . . . . Uniques/NPCs Destroyed . | . . . . . . Combat | -11 -10 -10 -9 -8 -8 -------- Run | Scr Mat Min Mat Mat Gar Damage Taken 3495 | . . 363 91 844 2197 Core 635 | . . 51 17 144 423 Absorbed by Shields . | . . . . . . Core Remaining (%) 91 | 100 . 79 95 . . Volleys Fired 205 | 21 . 22 37 55 70 Largest 2 | 2 . 2 2 2 2 Hottest 106 | 60 . 60 76 62 106 Shots Fired 371 | 34 . 42 70 95 130 Gun 320 | 34 . 42 64 61 119 Cannon 51 | . . . 6 34 11 Launcher . | . . . . . . Special . | . . . . . . Kinetic 303 | 13 . 22 43 95 130 Thermal 32 | . . 5 27 . . Explosive . | . . . . . . Electromagnetic 36 | 21 . 15 . . . Robot Hit Streak 22 | 9 . 7 10 9 22 Robot Miss Streak 7 | 3 . 7 2 4 3 Penetration Max 1 | . . . . . 1 Secondary Targets 4 | . . . . . 4 Max Gunslinging Chain 1 | . . . . . 1 Shots Hit Robots 237 | 21 . 22 49 66 79 Core Hits 91 | 6 . 13 14 21 37 Critical Hits 1 | . . . . . 1 Critical Kills 1 | . . . . . 1 Critical Parts Destroyed . | . . . . . . Melee Attacks . | . . . . . . Impact . | . . . . . . Slashing . | . . . . . . Piercing . | . . . . . . Sneak Attacks . | . . . . . . Combat Hostiles . | . . . . . . Follow-up Attacks . | . . . . . . Damage Inflicted 3884 | 258 . 279 611 1039 1697 Guns 3020 | 222 . 279 543 559 1417 Cannons 823 | . . . 68 480 275 Explosions 36 | 36 . . . . . Melee . | . . . . . . Ramming 5 | . . . . . 5 Kinetic 3162 | 48 . 102 281 1039 1692 Thermal 399 | 36 . 33 330 . . Explosive . | . . . . . . Electromagnetic 318 | 174 . 144 . . . Impact . | . . . . . . Slashing . | . . . . . . Piercing . | . . . . . . Highest Corruption 4 | . . . 4 . . Average Corruption 4 | . . . 4 . . Corruption Purged . | . . . . . . Effects 2 | . . . 2 . . Matter Fused 1 | . . . 1 . . Data Loss (minor) 1 | . . . 1 . . Overload Shots . | . . . . . . Overflow Damage 11 | . . . . 11 . Projectiles 11 | . . . . 11 . Explosions . | . . . . . . Melee . | . . . . . . Knockbacks 3 | . . . . 3 . Impact . | . . . . . . Kinetic 3 | . . . . 3 . Secondary . | . . . . . . Self-Inflicted Damage . | . . . . . . Shots . | . . . . . . Rammed 1 | . . . . . 1 Targets Rammed 1 | . . . . . 1 Kicked . | . . . . . . Crushed . | . . . . . . Highest Temperature 121 | 40 . 121 28 8 36 Average Temperature 40 | 21 . 67 10 7 16 Received Heat Transfer 1119 | . . 162 18 378 561 Siege Activations . | . . . . . . Robots Corrupted . | . . . . . . Combat Hostiles . | . . . . . . Parts Fried . | . . . . . . Impact Corruptions . | . . . . . . Robots Melted . | . . . . . . Combat Hostiles . | . . . . . . Parts Melted 1 | . . . 1 . . Heat Transferred 914 | . . 75 839 . . Parts Sabotaged . | . . . . . . Parts Stolen . | . . . . . . Parts Stripped . | . . . . . . Power Chain Reactions 1 | 1 . . . . . Missiles Intercepted . | . . . . . . Alert | -11 -10 -10 -9 -8 -8 ------- Run | Scr Mat Min Mat Mat Gar Peak Influence 1060 | 20 27 110 152 216 1060 Average Influence 407 | 7 24 75 65 133 605 Maximum Alert Level 3 | . . . . 1 3 Low Security (%) 47 | 100 100 100 100 96 15 Level 1 12 | . . . . 3 19 Level 2 11 | . . . . . 19 Level 3 28 | . . . . . 46 Level 4 . | . . . . . . Level 5 . | . . . . . . High Security . | . . . . . . Max Security . | . . . . . . Squads Dispatched 4 | . . . 1 3 . Investigation . | . . . . . . Extermination . | . . . . . . Reinforcement 1 | . . . 1 . . Assault . | . . . . . . Garrison 3 | . . . . 3 . Intercept . | . . . . . . Construction Impeded . | . . . . . . Haulers Reinforced . | . . . . . . Stealth | -11 -10 -10 -9 -8 -8 --------- Run | Scr Mat Min Mat Mat Gar Distress Signals 4 | . . . 2 2 . Communications Jammed . | . . . . . . Distress Signals . | . . . . . . Times Spotted 60 | . . 7 10 20 23 Peak Tracking Total 6 | . . 3 4 6 5 Tactical Retreats 8 | . . . . 5 3 Traps | -11 -10 -10 -9 -8 -8 ------- Run | Scr Mat Min Mat Mat Gar Traps Triggered 6 | . . . . . 6 Indirectly . | . . . . . . Trap Hack Attempts . | . . . . . . Triggered . | . . . . . . Disarmed . | . . . . . . Reprogrammed . | . . . . . . Reused . | . . . . . . Traps Extracted . | . . . . . . Installed . | . . . . . . Triggered . | . . . . . . Machines | -11 -10 -10 -9 -8 -8 ---------- Run | Scr Mat Min Mat Mat Gar Machines Disabled 4 | . . . 1 . 3 Max in Single Turn 1 | . . . 1 . 1 Garrison Relay 3 | . . . . . 3 Machines Sabotaged . | . . . . . . Garrisons Compromised . | . . . . . . Overloaded Fab Kills . | . . . . . . Fab Network Shutdowns . | . . . . . . Hacking | -11 -10 -10 -9 -8 -8 --------- Run | Scr Mat Min Mat Mat Gar Machines Accessed 3 | . 1 . 1 1 . Terminals 2 | . 1 . 1 . . Fabricators . | . . . . . . Repair Stations . | . . . . . . Recycling Units . | . . . . . . Scanalyzers . | . . . . . . Garrison Access 1 | . . . . 1 . Total Hacks 7 | . 3 . 3 1 . Successful 3 | . 1 . 1 1 . Failed 4 | . 2 . 2 . . Catastrophic 2 | . 1 . 1 . . Database Lockouts . | . . . . . . Manual 3 | . 3 . . . . Terminals 6 | . 3 . 3 . . Fabricators . | . . . . . . Repair Stations . | . . . . . . Recycling Units . | . . . . . . Scanalyzers . | . . . . . . Garrison Access 1 | . . . . 1 . Terminal Hacks 1 | . . . 1 . . Prototype ID Bank 1 | . . . 1 . . Fabricator Hacks . | . . . . . . Repair Station Hacks . | . . . . . . Recycling Unit Hacks . | . . . . . . Scanalyzer . | . . . . . . Garrison Access Hacks 1 | . . . . 1 . Unlock Access 1 | . . . . 1 . Unauthorized Hacks 2 | . 2 . . . . Terminals 1 | . 1 . . . . Botnet 1 | . 1 . . . . Fabricators . | . . . . . . Repair Stations . | . . . . . . Recycling Units . | . . . . . . Scanalyzers . | . . . . . . Garrison Access . | . . . . . . Data Cores Recovered . | . . . . . . Used . | . . . . . . Hacking Detections 2 | . 1 . 1 . . Full Trace Events . | . . . . . . Feedback Events . | . . . . . . Feedback Blocked . | . . . . . . Robot Schematics Acquired . | . . . . . . Robots Built . | . . . . . . Matter . | . . . . . . Time . | . . . . . . Total Robot Build Rating . | . . . . . . Part Schematics Acquired . | . . . . . . Parts Built . | . . . . . . Matter . | . . . . . . Time . | . . . . . . Total Part Build Rating . | . . . . . . Parts Repaired . | . . . . . . Time . | . . . . . . Parts Recycled . | . . . . . . Recycled Matter . | . . . . . . Retrieved Matter . | . . . . . . Retrieved Components . | . . . . . . Parts Scanalyzed . | . . . . . . Part Schematics Acquired . | . . . . . . Parts Damaged . | . . . . . . Bothacking | -11 -10 -10 -9 -8 -8 ------------ Run | Scr Mat Min Mat Mat Gar Used RIF Installer 1 | . . . . . 1 Robots Hacked . | . . . . . . Non-combat . | . . . . . . Combat . | . . . . . . Robot Hacks Applied . | . . . . . . Relay Couplers Released 11 | . . . . . 11 Machine Destruction 11 | . . . . . 11 Attached 1 | . . . . . 1 Robots Rewired 3 | . . . . . 3 Allies Hacked . | . . . . . . Hacks Repelled . | . . . . . . Allies | -11 -10 -10 -9 -8 -8 -------- Run | Scr Mat Min Mat Mat Gar Total Allies 6 | . . 3 . . 3 Largest Group 3 | . . 3 3 1 3 Highest-Rated Group 114 | . . 40 40 16 114 Highest-Rated Ally 38 | . . 16 16 16 38 Total Orders . | . . . . . . Ally Attacks 53 | . . . 31 9 13 Total Damage 746 | . . . 336 127 283 Kills 13 | . . . 8 . 5 Allies Corrupted . | . . . . . . Allies Melted . | . . . . . . Intel | -11 -10 -10 -9 -8 -8 ------- Run | Scr Mat Min Mat Mat Gar Robot Analysis Total . | . . . . . . Derelict Logs Recovered . | . . . . . . Drone Launches . | . . . . . . Drone Recoveries . | . . . . . . Exploration | -11 -10 -10 -9 -8 -8 ------------- Run | Scr Mat Min Mat Mat Gar Turns Passed 4206 | 116 62 406 619 383 2620 Spaces Moved 1556 | 49 67 223 378 140 699 Core 17 | 9 . 6 . . 2 Treads 265 | . . . . 83 182 Legs 350 | . . . . . 350 Wheels 591 | 40 67 140 293 51 . Hover . | . . . . . . Flight 333 | . . 77 85 6 165 Fastest Speed 50 | 50 90 90 100 120 120 Average Speed 143 | 89 90 144 127 161 158 Slowest Speed 600 | 150 90 440 282 259 600 Overloaded Moves . | . . . . . . Propulsion Burnouts . | . . . . . . Robots Hopped . | . . . . . . Cave-ins Triggered . | . . . . . . Exploration Rate (%) 31 | 3 14 44 43 15 70 Regions Visited 5 Branch Regions 1 Pre-discovered Areas . | . . . . . . Known Exits Taken 1 | . . . . 1 . Unknown Exits Taken 4 | 1 1 1 1 . . Scrap Searched 1 | . . 1 . . . Spaces Dug 3 | . . . . . 3 Terrain Destroyed 6 | 1 . . . 1 4 Melee . | . . . . . . Projectile 5 | . . . . 1 4 AOE 1 | 1 . . . . . Actions | -11 -10 -10 -9 -8 -8 --------- Run | Scr Mat Min Mat Mat Gar Total 3183 | 89 68 270 453 213 2090 Wait 1269 | 8 . 12 7 5 1237 Move 1551 | 48 66 222 377 139 699 Hop . | . . . . . . Pick Up 47 | 6 1 6 16 4 14 Fast Attach 6 | . . . . . 6 Attach 28 | 6 1 4 3 8 6 Detach . | . . . . . . Swap 19 | . . 2 8 1 8 Drop 17 | . . 2 5 1 9 Fire 205 | 21 . 22 37 55 70 Melee . | . . . . . . Ram . | . . . . . . Kick . | . . . . . . Crush 1 | . . . . . 1 Escape Stasis 15 | . . . . . 15 Rewire 25 | . . . . . 25 Trap . | . . . . . . Miscellaneous . | . . . . . . Route ------- -11/Scrapyard -10/Materials -10/Mines -9/Materials -8/Materials -8/Garrison (discovered 2 exits: [*Mat x2]) History --------- Turn | Location | Event 24 | -11/Scrapyard | Discovered new exit (range 16) 117 | -11/Scrapyard | Entered Materials 168 | -10/Materials | Discovered new exit (range 6) 179 | -10/Materials | Entered Mines 297 | -10/Mines | Met a Derelict bent on vengeance 310 | -10/Mines | Lost 3 parts (1n1u1w) 319 | -10/Mines | Build established: Mutant 552 | -10/Mines | Discovered new exit (range 13) 575 | -10/Mines | Assisted by bots powering up and referring to "LRC-V3" 585 | -10/Mines | Entered Materials 585 | -9/Materials | Accompanied by 3 allies 585 | -9/Materials | Evolved 2 slots: Propulsion x1, Utility x1 723 | -9/Materials | Build established: Scavenger-Mutant 1178 | -9/Materials | Discovered new exit (range 16) 1204 | -9/Materials | Entered another Materials area 1204 | -8/Materials | Accompanied by 1 ally 1204 | -8/Materials | Evolved 2 slots: Utility x2 1370 | -8/Materials | Garrison activated, responded to threat 1401 | -8/Materials | Lost 5 parts (2n1u2w) 1435 | -8/Materials | Build established: Mutant 1585 | -8/Materials | Identified exit to Garrison 1587 | -8/Materials | Entered Garrison 2060 | -8/Garrison | Triggered checkpoint 2124 | -8/Garrison | Garrison Relay disabled 2630 | -8/Garrison | Triggered checkpoint 2733 | -8/Garrison | Discovered new exit (range 12) 2758 | -8/Garrison | Triggered checkpoint 2843 | -8/Garrison | Garrison Relay disabled 2868 | -8/Garrison | Build established: Scavenger-Mutant 3076 | -8/Garrison | Triggered checkpoint 3255 | -8/Garrison | Garrison Relay disabled 3500 | -8/Garrison | Triggered checkpoint 3523 | -8/Garrison | Triggered checkpoint 3714 | -8/Garrison | Discovered new exit (range 10) 3730 | -8/Garrison | Triggered checkpoint 3849 | -8/Garrison | Installed Relay Interface Framework 3988 | -8/Garrison | Triggered checkpoint 4046 | -8/Garrison | Core integrity fell below 50% 4155 | -8/Garrison | Spotted B-75 Beast 4155 | -8/Garrison | Spotted B-75 Beast 4199 | -8/Garrison | Destroyed B-75 Beast 4202 | -8/Garrison | Core integrity fell below 20% 4207 | -8/Garrison | Destroyed by B-75 Beast with Heavy Machine Gun Last Messages --------------- 04078_ Stasis field depleted. 04081_ Acquired 63 matter. 04083_ Acquired Carbon-fiber Leg. 04087_ Acquired 41 matter. 04110_ Identified Relay Coupler [Brawler]. 04176_ Attempting to rewire B-75 Beast. 04176_ B-75 Beast is dormant, system inaccessible. 04180_ B-75 Beast springs to life. 04182_ Acquired Magnetic Acceleration Cannon. 04186_ Slug penetrates B-75 Beast. 04188_ Carbon-fiber Leg destroyed. 04189_ Slug penetrates B-75 Beast. 04190_ Gauss Rifle destroyed. 04190_ Imp. Carbon-fiber Leg destroyed. 04195_ Imp. Ion Engine destroyed. 04196_ Imp. Cooling System destroyed. 04198_ Imp. Terrain Scanner destroyed. 04198_ Acquired Magnetic Acceleration Cannon. 04199_ Imp. Targeting Computer destroyed. 04199_ B-75 Beast destroyed. Map ----- +----------------------------------------------------+ | ???????????#?####?#????## ##???# #???#?#?????#? | | ??????#??????##???#######"####?### #?? ?? ????#?# | | ?????????#???#####?##?#""[""###??# ### ??? ?#???# | | ???????#???##?#?###?###" "#?#### #?#? ?? ??#??? | | ???????#??##?#????#???## =%###???# ##??# ?????#?# | | ??????#?????????#?#####++[++######= ####? #??????? | | ??????????#??#?##?# ^^ = =* [ *[!########?????? | | ????????#????#????# #### **#######% #?#???# | | ?????????#?#?###### #### #####?# ###?#?? | | ?????????##???#""## #########?#####"##### ##?#??? | | ?????????##?#?#"[ # ### #####??## ##??# #????## | | ????#?????????#"!!" " ######### ##### ####??# | | ????????#??#### ! # ### " " #?#? | | ?????#??###???#""##!######### ##### ##### ## ##?? | | ????##????????#####!#????#?## ##??# ##??# ##"#### | | ????#??#??#?#???#?#!######### #?#?# ##### ## # | | ????#?#?###???#??## ######?# #?#?# ##?## ## # | | ?????????????#???##%#???#### ##### #### | | ????#??????#??#???###?####?# #???# ##?# | | ????#????#?#?#?#??#?####??######### ##?# %[ | | ??????#?????#???####??##?????###?## #??# ##%= # | | ???????????##?????#???##?#?#????#?#=####! ## # | | ???????##??#????#?????????#????####= !![[[ ^ | | ??????????#??#?#?##???##?????#????####%*! ^ != | | ????????#?????#???##############?##?## !! ^ [% | | ??????????#?????#?# @ ##?###?##?#= ^ %= = | | ??????????##??#?#?# % ##??##?###### ## # | | ??????????????????# ############## ## # | | ??????????????????# BB # | | ??????????????????# BB # | | ????????????#?????#!!! !!!##### ####### = | | ??????????????????#########?#?# ##??### ##!%[ # | | ????????????????????????##?#??# #??#??# ## =% # | | ??????????????????????????????# ####### ####### | | ??????????????????????????????# " ^^###? #? | | ??????????????????????????#?#?# ####### %=#?#??#? | | ??????????????????????????????# ##?#??# % #?#?#?# | | ??????????????????????????????# #??#??# *#????#? | | ??????????????????#????????#?#####???#?# #??#?#? | | ?????????????????????????????? ? ??? ? #???#?# | | ????????????????????????????? ? ???? #?????? | | ?????????????????????????? ?????? #?????? | | ?????????????????????????????????#######"###?????# | | ???????????????????????????????????????# #????#??# | | ???????????????????????????????????????# #????#?#? | | ??????????????????????????????????????? #?#???##? | | ???????????????????????????????????????##????#???? | | ???????????????????????????????????????????#??#??? | | ?????????????????????????????????????????????????? | | ??????????????????????????????????????#?##?#?????? | +----------------------------------------------------+ Best States ------------- Heat Dissipation 72 Energy Generation 14 Energy Capacity 280 Matter Stores 300 Matter Capacity 300 Sight Range 16 Robot Scan Range 10 Terrain Scan Range 16 Terrain Scan Density 10 Armor Coverage 225 Evasion (%) 42 Targeting Accuracy 6 Recoil Reduction 1 Item Schematics ----------------- None Robot Schematics ------------------ None Fabricated ------------ Nothing Alien Tech Used ----------------- None Achievements -------------- None Challenges ------------ None Game ------ Seed TractorMolecularWell Manual? 0 Play Time 00:36:39 Cumulative 45.3 hours Start 2019.11.29 @ 23:08:00 End 2019.11.29 @ 23:43:28 Sessions 1 Manual Loads 0 Difficulty Rogue Special Mode None Game No. 65 Rogue 65 Adventurer 0 Explorer 0 Win Type - Total 0 Types 0/0/0/0/0/0/0 Lore% 22 Gallery% 21 Achievement% 21 Wizard Run 0 Options --------- ASCII 0 Keyboard 0 Movement Arrows Keybinds 0 Fullscreen 1 Font 18/SmallcapsGlow Map View 76x50 Tactical HUD 1 Map Filters NONE Filters LOW_CONTRAST(13,24,33)|BRIGHTNESS(120)|SATURATION(80) Steam 1 RUN: dafa8f25-6f60-4b79-b3be-4883e20f3615